Cogmind - Beta 14 @@@ ROGUE MODE // 2024.09.18 @ 18:55:58 Player: Dull Result: Destroyed self with Grenade Launcher Performance ------------- Evolutions (0) 0 Regions Visited (2) 400 Robots Destroyed (32) 160 Value Destroyed (895) 895 Prototype IDs (0) 0 Alien Tech Used (0) 0 Bonus (0) 0 TOTAL SCORE: 1455 Bonus ------- None Cogmind --------- Core Integrity 0/250 Matter 142/300 Energy 250/250 System Corruption 0% Temperature Cool (0) Movement Core (950) Ox18 Location -10/Subcaves Parts ------- > --- POWER (1) -------- Ion Engine > --- PROPULSION (2) --- (None) > --- UTILITY (2) ------ High-capacity Storage Unit > --- WEAPON (2) ------- Subdweller Beam Cannon Grenade Launcher > --- INVENTORY (20) --- Ion Engine Ion Engine Light Ion Engine Heat Sink Heat Sink Disposable Heat Sink Small Storage Unit Large Storage Unit High-capacity Matter Pod (0) Subdweller Optics ECM Suite Hacking Suite Peak State ------------ > --- POWER ------------ Light Nuclear Core > --- PROPULSION ------- Light Treads Light Treads > --- UTILITY ---------- High-capacity Storage Unit Improved Terrain Scanner > --- WEAPON ----------- Light Assault Rifle Light Cannon > --- INVENTORY -------- Ion Engine Ion Engine Ion Engine Light Ion Engine Light Ion Engine Light Treads Wheel Heat Sink Heat Sink Small Storage Unit Large Storage Unit High-capacity Matter Pod ECM Suite ECM Suite Hacking Suite Assault Rifle Grenade Launcher Mining Laser [Rating: 13] Favorites ----------- Power Light Nuclear Core Engine Light Ion Engine Power Core Light Nuclear Core Propulsion Light Treads Treads Light Treads Leg Aluminum Leg Wheel Subdweller Monowheel Utility High-capacity Storage Unit Device Improved Terrain Scanner Storage High-capacity Storage Unit Weapon Light Assault Rifle Energy Gun Medium Laser Energy Cannon Subdweller Beam Cannon Ballistic Gun Light Assault Rifle Ballistic Cannon Light Cannon Launcher Grenade Launcher Special Weapon Mining Laser Build | -11 -10 -10 ------- Run | Yrd Mat Sub Slots Evolved . | . . . Power . | . . . Propulsion . | . . . Utility . | . . . Weapon . | . . . Parts Attached 25 | 4 10 11 Power 5 | . 3 2 Engine 3 | . 1 2 Core 2 | . 2 . Reactor . | . . . Propulsion 6 | 2 . 4 Treads 3 | 2 . 1 Leg . | . . . Wheel 3 | . . 3 Hover . | . . . Flight . | . . . Utility 5 | 2 2 1 Device 3 | 2 . 1 Storage 2 | . 2 . Processor . | . . . Hackware . | . . . Protection . | . . . Artifact . | . . . Weapon 9 | . 5 4 Energy Gun 1 | . 1 . Energy Cannon 1 | . . 1 Ballistic Gun 2 | . 1 1 Ballistic Cannon 1 | . 1 . Launcher 3 | . 2 1 Special Weapon 1 | . . 1 Impact Weapon . | . . . Slashing Weapon . | . . . Piercing Weapon . | . . . Special Melee Weapon . | . . . Unidentified Prototypes . | . . . Parts Lost 15 | . 1 14 Power 3 | . 1 2 Propulsion 6 | . . 6 Utility 2 | . . 2 Weapon 4 | . . 4 Highest Loss Streak 5 | . 1 5 To Critical Strikes . | . . . Average Slot Usage (%) 96 | . 99 87 Engine 3 | . 1 8 Core 10 | . 12 2 Treads 23 | . 28 10 Wheel 3 | . . 14 Device 13 | . 14 13 Storage 14 | . 14 14 Energy Gun 4 | . 6 . Ballistic Gun 11 | . 13 7 Ballistic Cannon 8 | . 7 10 Launcher 1 | . 1 . Peak Build Rating 13 | 9 13 13 Average Rating 10 | 6 11 8 On Entrance 9 | 6 9 13 Naked Turns . | . . . Heaviest Build 58 | 12 52 58 Greatest Support 40 | 40 40 40 Greatest Overweight (x) 4 | . 1 4 Average Overweight (x) 1 | . . 2 Largest Inventory Capacity 20 | 8 20 20 Average Capacity 18 | 8 18 20 Most Carried 18 | 6 18 18 Average Carried 12 | 5 12 15 Final Capacity 20 | 8 20 20 Final Carried 18 | 2 18 12 Class Distribution -------------------- 100% | Mutant Dominant Class ---------------- Mutant | -10/Materials Mutant | -10/Subcaves Resources | -11 -10 -10 ----------- Run | Yrd Mat Sub Matter Collected 685 | 223 342 120 Remotely . | . . . Salvage Created 821 | 93 596 132 Parts 44 | 6 28 10 Haulers Intercepted 2 | . 2 . Recyclers Shooed . | . . . Parts Field Recycled . | . . . Retrieved Matter . | . . . Parts Self-Destructed 7 | . . 7 Prevented . | . . . Kills | -11 -10 -10 ------- Run | Yrd Mat Sub Combat Hostiles Destroyed 23 | . 15 8 Guns 8 | . 7 1 Cannons 6 | . 3 3 AOE 9 | . 5 4 Classes Destroyed 8 | 2 5 1 Tunneler 2 | 2 . . Hauler 2 | . 2 . Recycler 1 | 1 . . Operator 1 | . 1 . Watcher 3 | . 3 . Swarmer 3 | . 3 . Grunt 12 | . 12 . Subdweller 8 | . . 8 Best Kill Streak 5 | 2 5 4 Combat Bots Only 5 | . 5 4 Max Kills in Single Turn 2 | 1 2 2 Gunslinging . | . . . Exploded 2 | . 2 2 Melee . | . . . Uniques/NPCs Destroyed . | . . . Combat | -11 -10 -10 -------- Run | Yrd Mat Sub Hostile Shots Fired 104 | . 57 47 Missed 27 | . 15 12 Damage Taken 1569 | . 457 1112 Core 257 | . 48 209 Absorbed by Shields . | . . . Core Remaining (%) 100 | 100 . . Volleys Fired 119 | 13 69 37 Largest 2 | 2 2 2 Hottest 110 | 70 70 110 Shots Fired 209 | 26 133 50 Gun 131 | 26 97 8 Cannon 62 | . 31 31 Launcher 12 | . 5 7 Special 4 | . . 4 Kinetic 142 | 13 95 34 Thermal 55 | 13 33 9 Explosive 12 | . 5 7 Electromagnetic . | . . . Robot Hit Streak 11 | 6 11 11 Robot Miss Streak 5 | 2 5 2 Penetration Max . | . . . Secondary Targets 1 | . 1 . Max Gunslinging Chain 1 | . 1 . Shots Hit Robots 134 | 16 84 34 Core Hits 58 | 5 39 14 Critical Kills . | . . . Critical Parts Destroyed . | . . . Critical Strikes 7 | 1 5 1 Burn 6 | 1 5 . Blast 1 | . . 1 Melee Attacks . | . . . Impact . | . . . Slashing . | . . . Piercing . | . . . Sneak Attacks . | . . . Combat Hostiles . | . . . Follow-up Attacks . | . . . Damage Inflicted 2835 | 168 1409 1258 Guns 844 | 168 625 51 Cannons 807 | . 378 429 Explosions 1160 | . 406 754 Melee . | . . . Ramming . | . . . Kinetic 1119 | 65 684 370 Thermal 556 | 103 319 134 Explosive 1160 | . 406 754 Electromagnetic . | . . . Impact . | . . . Slashing . | . . . Piercing . | . . . Highest Corruption . | . . . Average Corruption . | . . . Corruption Purged . | . . . Corruption Blocked . | . . . Overload Shots . | . . . Overflow Damage 22 | . 22 . Projectiles . | . . . Explosions 22 | . 22 . Melee . | . . . Knockbacks 4 | . 1 3 Impact . | . . . Kinetic 4 | . 1 3 Secondary . | . . . Self-Inflicted Damage 105 | . . 105 Shots 6 | . . 6 Rammed . | . . . Targets Rammed . | . . . Kicked . | . . . Crushed . | . . . Highest Temperature 259 | 150 236 259 Average Temperature 62 | 59 57 111 Received Heat Transfer 892 | . 186 706 Effects 1 | . . 1 Interference 1 | . . 1 Siege Activations . | . . . Robots Corrupted . | . . . Combat Hostiles . | . . . Parts Fried . | . . . Impact Corruptions . | . . . Robots Melted . | . . . Combat Hostiles . | . . . Parts Melted 6 | 1 5 . Heat Transferred 1863 | 370 1295 198 Parts Sabotaged . | . . . Parts Stolen . | . . . Parts Stripped . | . . . Power Chain Reactions . | . . . Alert | -11 -10 -10 ------- Run | Yrd Mat Sub Peak Influence 208 | 15 208 . Initial 9 | . 9 . Average 104 | 9 109 . Maximum Alert Level 1 | . 1 . Low Security (%) 84 | 100 83 . Level 1 15 | . 16 . Level 2 . | . . . Level 3 . | . . . Level 4 . | . . . Level 5 . | . . . High Security . | . . . Max Security . | . . . Squads Dispatched 3 | . 3 . Investigation 1 | . 1 . Extermination . | . . . Reinforcement 2 | . 2 . Assault . | . . . Garrison . | . . . Intercept . | . . . Searches Triggered . | . . . Construction Impeded . | . . . Haulers Reinforced . | . . . Active Scanning Responses . | . . . Cargo Convoy Interrupts . | . . . Stealth | -11 -10 -10 --------- Run | Yrd Mat Sub Distress Signals 2 | . 2 . Communications Jammed . | . . . Distress Signals . | . . . Times Spotted 39 | . 29 10 Peak Tracking Total 4 | . 4 4 Tactical Retreats 1 | . 1 . Traps | -11 -10 -10 ------- Run | Yrd Mat Sub Traps Triggered 1 | . 1 . Indirectly . | . . . Trap Hack Attempts . | . . . Triggered . | . . . Disarmed . | . . . Reprogrammed . | . . . Reused . | . . . Traps Extracted . | . . . Installed . | . . . Triggered . | . . . Machines | -11 -10 -10 ---------- Run | Yrd Mat Sub Machines Disabled 1 | . 1 . Max in Single Turn 1 | . 1 . Machines Repaired . | . . . Machines Dismantled . | . . . Machines Sabotaged . | . . . Overloaded Fab Kills . | . . . Hacking | -11 -10 -10 --------- Run | Yrd Mat Sub Machines Accessed 7 | . 7 . Terminals 5 | . 5 . Fabricators . | . . . Repair Stations . | . . . Recycling Units 2 | . 2 . Scanalyzers . | . . . Garrison Access . | . . . Total Hacks 18 | . 18 . Successful 7 | . 7 . Failed 11 | . 11 . Catastrophic . | . . . Database Lockouts . | . . . Manual 18 | . 18 . Terminals 14 | . 14 . Fabricators . | . . . Repair Stations . | . . . Recycling Units 4 | . 4 . Scanalyzers . | . . . Garrison Access . | . . . Terminal Hacks 2 | . 2 . Robot Analysis 2 | . 2 . Fabricator Hacks . | . . . Repair Station Hacks . | . . . Recycling Unit Hacks . | . . . Scanalyzer . | . . . Garrison Access Hacks . | . . . Unauthorized Hacks 5 | . 5 . Terminals 4 | . 4 . Botnet 4 | . 4 . Fabricators . | . . . Repair Stations . | . . . Recycling Units 1 | . 1 . Mask 1 | . 1 . Scanalyzers . | . . . Garrison Access . | . . . Data Cores Recovered . | . . . Used . | . . . Hacking Detections 7 | . 7 . Full Trace Events 1 | . 1 . Feedback Events . | . . . Feedback Blocked . | . . . Robot Schematics Acquired . | . . . Robots Built . | . . . Authchips . | . . . Time . | . . . Total Robot Build Rating . | . . . Part Schematics Acquired . | . . . Parts Built . | . . . Authchips . | . . . Time . | . . . Total Part Build Rating . | . . . Parts Repaired . | . . . Time . | . . . Parts Recycled . | . . . Recycled Matter . | . . . Retrieved Matter . | . . . Retrieved Components . | . . . Parts Scanalyzed . | . . . Part Schematics Acquired . | . . . Parts Damaged . | . . . Bothacking | -11 -10 -10 ------------ Run | Yrd Mat Sub Used RIF Installer . | . . . Robots Hacked . | . . . Non-combat . | . . . Combat . | . . . Robot Hacks Applied . | . . . Relay Couplers Released . | . . . Fabnet Peak Effective % . | . . . Robots Rewired . | . . . Allies Hacked . | . . . Hacks Repelled . | . . . Allies | -11 -10 -10 -------- Run | Yrd Mat Sub Total Allies . | . . . Largest Group . | . . . Highest-Rated Group . | . . . Highest-Rated Ally . | . . . Total Orders . | . . . Ally Attacks . | . . . Total Damage . | . . . Kills . | . . . Allies Corrupted . | . . . Allies Melted . | . . . Intel | -11 -10 -10 ------- Run | Yrd Mat Sub Robot Analysis Total 2 | . 2 . Derelict Logs Recovered 1 | . . 1 Drone Launches . | . . . Drone Recoveries . | . . . Exploration | -11 -10 -10 ------------- Run | Yrd Mat Sub Turns Passed 2178 | 89 1567 522 Spaces Moved 835 | 38 569 228 Core . | . . . Treads 610 | 1 569 40 Legs 37 | 37 . . Wheels 188 | . . 188 Hover . | . . . Flight . | . . . Fastest Speed 107 | 120 160 107 Average Speed 200 | 121 228 145 Slowest Speed 320 | 160 240 320 Overloaded Moves . | . . . Propulsion Burnouts . | . . . Robots Hopped . | . . . Cave-ins Triggered . | . . . Exploration Rate (%) 37 | 4 92 16 Regions Visited 2 Branch Regions 1 Pre-discovered Areas 1 | . . 1 Known Exits Taken . | . . . Unknown Exits Taken 2 | 1 1 . Scrap Searched . | . . . Spaces Dug . | . . . Terrain Destroyed 62 | . 24 38 Melee . | . . . Projectile . | . . . AOE 62 | . 24 38 Terrain Rammed . | . . . Walls Destroyed . | . . . Machines Disabled . | . . . Actions | -11 -10 -10 --------- Run | Yrd Mat Sub Total 1136 | 58 717 361 Wait 131 | . 49 82 Move 833 | 37 568 228 Hop . | . . . Pick Up 20 | . 17 3 Fast Attach 3 | 1 . 2 Attach 10 | . 1 9 Detach . | . . . Swap 12 | 3 9 . Drop 8 | 4 4 . Fire 119 | 13 69 37 Melee . | . . . Ram . | . . . Kick . | . . . Crush . | . . . Escape Stasis . | . . . Rewire . | . . . Trap . | . . . Miscellaneous . | . . . Route ------- -11/Scrapyard -10/Materials (discovered 5 exits: [*Mat x3] / [*Min] / [*Sub]) -10/Subcaves (discovered 1 exit: [*Mat]) History --------- Turn | Location | Event 1 | -11/Scrapyard | Discovered new exit (range 3) 90 | -11/Scrapyard | Entered Materials 301 | -10/Materials | Build established: Mutant 902 | -10/Materials | Discovered new exit (range 5) 1147 | -10/Materials | Discovered new exit (range 16) 1372 | -10/Materials | Discovered new exit (range 8) 1617 | -10/Materials | Discovered new exit (range 5) 1622 | -10/Materials | Discovered new exit (range 13) 1657 | -10/Materials | Entered Subcaves 1812 | -10/Subcaves | Lost 5 parts (1p2n1u1w) 1826 | -10/Subcaves | Learned location of Zion (-6) 1947 | -10/Subcaves | Core integrity fell below 50% 2008 | -10/Subcaves | Discovered new exit (range 12) 2090 | -10/Subcaves | Lost 3 parts (1p1n1w) 2142 | -10/Subcaves | Core integrity fell below 20% 2158 | -10/Subcaves | Ambushed by Subdwellers from Twisted Machinery 2179 | -10/Subcaves | Destroyed self with Grenade Launcher Last Messages --------------- 02059_ Lgt. Cannon destroyed. 02062_ L0-NJD(R) destroyed. 02068_ Acquired Sub. Monowheel. 02130_ Sub. Monowheel destroyed. 02136_ Mining Laser destroyed. 02140_ Critical hit (Meltdown: +290). 02141_ HS-AF0(R) destroyed. 02143_ Overheating: System interference. 02143_ Grenade Launcher temporarily disabled. 02144_ Acquired Sub. Beam Cannon. 02154_ Subatomizers dissect the Sub. Monowheel. 02160_ 8V-370(R): "WEHOME!" 02168_ KB-411(R): "ARGHSUB!" 02172_ Sub. Monowheel destroyed. 02173_ K5-X8X(R) destroyed. 02173_ 8V-370(R) destroyed. 02176_ Destroyed Scrap Shield. 02176_ RF-3YD(R) destroyed. 02176_ ECM Suite destroyed. 02179_ KB-411(R) destroyed. Map ----- +----------------------------------------------------+ | ???????????????????????????????????????????? | | ???????????????????????????????????????????? | | ???????????????????????????????????????????? | | ???????????????????????????????????????????? | | ???????????????????????????????????????????? | | ???????????????????????????????????????????? | | ???????????????????????????????????????????? | | ???????????????????????????????????????????? | | ???????????????????????????????????????????? | | ???????????????????????????????????????????? | | ???????????????????????????????????????????? | | ???????????????????????????????????????????? | | ???????????????????????#???????????????????? | | ??????????????????????? ???????????????????? | | ??????????????????????? ?""???????????????? | | ??????????????????????? "?"#???????????????? | | ??????????????????????? """##??????????????? | | ?????????????????????### " #??????????????? | | ?????????????????????# " ###????????????? | | ?????????????????????# " ?????????????? | | ?????????????????????# #?????????????? | | ????????????????????## *& &#?????????????? | | ????????????????????# &%& ##????????????? | | ????????????????????# = #????????????? | | ???????????????????### #?????????????? | | ?????????????????###"" @ #?????????????? | | ?????????????????#"""" ##?????????????? | | ?????????????????##""# # ##??????????????? | | ?????????????????#""## #####???????????????? | | ???????????????###""# #??????????????????? | | ??????????????## " #??????????????????? | | ??????????????#"""" ="##??????????????????? | | ??????????????##" &% #???????????????????? | | ???????????????##" !& #???????????????????? | | ???????????????## " #???????????????????? | | ???????????????# "" ##??????????????????? | | ???????????????# """ " #??????????????????? | | ???????????????# """ "##??????????????????? | | ???????????????# """" #???????????????????? | | ???????????????## ##???????????????????? | | ????????????????## #####?????????????????? | | ?????????????????#% ### ##????????????????? | | ???????????????### %#?# ##???????????????? | | ??????????????## & #### #???????????????? | | ??????????????# ## #???????????????? | | ?????????????#" % ## #???????????????? | | ?????????????## < ### #???????????????? | | ??????????????# ### #???????????????? | | ??????????????# ## ##???????????????? | | ??????????????# ###????????????????? | +----------------------------------------------------+ Best States ------------- Heat Dissipation 25 Energy Generation 14 Energy Capacity 250 Matter Stores 300 Matter Capacity 300 Sight Range 16 Terrain Scan Range 16 Terrain Scan Density 10 ECM Strength 1 Evasion (%) 55 Recoil Reduction 2 Item Schematics ----------------- None Robot Schematics ------------------ None Fabricated ------------ Nothing Alien Tech Used ----------------- None Achievements -------------- None Challenges ------------ None Game ------ Seed GrenadeUtilityCannon Manual? 0 Play Time 00:15:08 Cumulative 112.1 hours Start 2024.09.18 @ 18:44:22 End 2024.09.18 @ 18:55:58 Sessions 1 Manual Loads 0 Difficulty Rogue Special Mode None Game No. 158 Rogue 158 Adventurer 0 Explorer 0 Win Type - Total 1 Types 1/0/0/0/0/0/0/0/0 Lore% 26 Gallery% 57 Achievement% 45 Wizard Run 0 Options --------- Layout 0 ASCII 0 Keyboard 0 Movement Mouse Keybinds 1 Fullscreen 1 Font 18/TerminusBold Map View 76x50 Zoom Use 0% Tactical HUD 1 Map Filters NONE Filters NONE Steam 1 RUN: 235c2174-83ab-4356-a5bb-c4171c83c92a